Cogmind - Beta 14 @@@ ROGUE MODE // 2024.09.06 @ 23:03:21 Player: Lunace Result: Destroyed by K3-LGV(R) with Subdweller Machine Gun Performance ------------- Evolutions (0) 0 Regions Visited (2) 400 Robots Destroyed (24) 120 Value Destroyed (482) 482 Prototype IDs (0) 0 Alien Tech Used (0) 0 Bonus (0) 0 TOTAL SCORE: 1002 Bonus ------- None Cogmind --------- Core Integrity 0/250 Matter 228/300 Energy 82/100 System Corruption 0% Temperature Cool (0) Movement Treading (240) Ox1 Location -10/Subcaves Parts ------- > --- POWER (1) -------- (None) > --- PROPULSION (2) --- Light Treads > --- UTILITY (2) ------ Large Storage Unit > --- WEAPON (2) ------- Subdweller Laser Subdweller Machine Gun > --- INVENTORY (15) --- SUBCON Basin (Full) Peak State ------------ > --- POWER ------------ Ion Engine > --- PROPULSION ------- Light Treads > --- UTILITY ---------- Large Storage Unit > --- WEAPON ----------- Subdweller Laser Subdweller Machine Gun > --- INVENTORY -------- SUBCON Basin [Rating: 25] Favorites ----------- Power Ion Engine Engine Ion Engine Propulsion Light Treads Treads Light Treads Wheel Subdweller Monowheel Utility Seismic Detector Device Seismic Detector Storage Small Storage Unit Protection Scrap Shield Weapon Subdweller Machine Gun Energy Gun EM Pulse Gun Energy Cannon Beam Cannon Ballistic Gun Subdweller Machine Gun Special Weapon Flamer Build | -11 -10 -10 ------- Run | Yrd Mat Sub Slots Evolved . | . . . Power . | . . . Propulsion . | . . . Utility . | . . . Weapon . | . . . Parts Attached 23 | 7 7 9 Power 1 | 1 . . Engine 1 | 1 . . Core . | . . . Reactor . | . . . Propulsion 3 | 2 . 1 Treads 2 | 2 . . Leg . | . . . Wheel 1 | . . 1 Hover . | . . . Flight . | . . . Utility 5 | 2 1 2 Device 1 | 1 . . Storage 3 | 1 1 1 Processor . | . . . Hackware . | . . . Protection 1 | . . 1 Artifact . | . . . Weapon 14 | 2 6 6 Energy Gun 4 | 2 1 1 Energy Cannon 1 | . 1 . Ballistic Gun 6 | . 3 3 Ballistic Cannon . | . . . Launcher . | . . . Special Weapon 3 | . 1 2 Impact Weapon . | . . . Slashing Weapon . | . . . Piercing Weapon . | . . . Special Melee Weapon . | . . . Unidentified Prototypes . | . . . Parts Lost 4 | . 1 3 Power 1 | . . 1 Propulsion 1 | . . 1 Utility 1 | . . 1 Weapon 1 | . 1 . Highest Loss Streak 2 | . 1 2 To Critical Strikes . | . . . Average Slot Usage (%) 80 | . 99 71 Engine 13 | . 14 13 Treads 21 | . 28 18 Wheel 2 | . . 3 Device 4 | . 14 . Storage 5 | . 14 1 Protection 3 | . . 4 Energy Gun 5 | . 14 1 Ballistic Gun 16 | . 10 19 Special Weapon 4 | . . 6 Peak Build Rating 25 | 7 8 25 Average Rating 8 | 5 7 10 On Entrance 5 | . 7 8 Naked Turns . | . . . Heaviest Build 33 | 15 30 33 Greatest Support 40 | 40 40 40 Greatest Overweight (x) 1 | . . 1 Average Overweight (x) . | . . . Largest Inventory Capacity 15 | 8 15 15 Average Capacity 7 | 7 10 6 Most Carried 15 | 1 9 15 Average Carried 4 | . 3 5 Final Capacity 15 | 8 15 15 Final Carried 15 | 1 9 15 Class Distribution -------------------- 83% | Mutant 16% | Subdweller-Mutant Dominant Class ---------------- Mutant | -10/Materials Mutant | -10/Subcaves Resources | -11 -10 -10 ----------- Run | Yrd Mat Sub Matter Collected 526 | 237 77 212 Remotely . | . . . Salvage Created 563 | 95 207 261 Parts 42 | 9 18 15 Haulers Intercepted . | . . . Recyclers Shooed 1 | 1 . . Parts Field Recycled . | . . . Retrieved Matter . | . . . Parts Self-Destructed 4 | . . 4 Prevented . | . . . Kills | -11 -10 -10 ------- Run | Yrd Mat Sub Combat Hostiles Destroyed 17 | . 7 10 Guns 12 | . 2 10 Cannons 2 | . 2 . AOE 3 | . 3 . Classes Destroyed 7 | 1 4 2 Builder 1 | . 1 . Tunneler 5 | 4 1 . Watcher 1 | . 1 . Swarmer 9 | . 5 4 Grunt 2 | . 2 . Sentry 1 | . . 1 Subdweller 5 | . . 5 Best Kill Streak 3 | 1 3 3 Combat Bots Only 3 | . 3 3 Max Kills in Single Turn 2 | 1 1 2 Gunslinging 1 | . . 1 Exploded 1 | . 1 . Melee . | . . . Uniques/NPCs Destroyed . | . . . Combat | -11 -10 -10 -------- Run | Yrd Mat Sub Hostile Shots Fired 110 | . 19 91 Missed 28 | . 5 23 Damage Taken 1164 | . 174 990 Core 251 | . 30 221 Absorbed by Shields . | . . . Core Remaining (%) 100 | 100 . . Volleys Fired 82 | 11 18 53 Largest 2 | 2 2 2 Hottest 110 | 80 110 90 Shots Fired 144 | 22 32 90 Gun 138 | 22 26 90 Cannon 4 | . 4 . Launcher . | . . . Special 2 | . 2 . Kinetic 87 | . 2 85 Thermal 15 | . 10 5 Explosive . | . . . Electromagnetic 42 | 22 20 . Robot Hit Streak 9 | 2 8 9 Robot Miss Streak 5 | 2 1 5 Penetration Max . | . . . Secondary Targets 2 | . . 2 Max Gunslinging Chain 1 | . . 1 Shots Hit Robots 81 | 10 23 48 Core Hits 32 | 5 11 16 Critical Kills . | . . . Critical Parts Destroyed . | . . . Critical Strikes 2 | . . 2 Destroy 2 | . . 2 Melee Attacks . | . . . Impact . | . . . Slashing . | . . . Piercing . | . . . Sneak Attacks . | . . . Combat Hostiles . | . . . Follow-up Attacks . | . . . Damage Inflicted 1544 | 155 498 891 Guns 1294 | 133 270 891 Cannons 54 | . 54 . Explosions 196 | 22 174 . Melee . | . . . Ramming . | . . . Kinetic 840 | . 11 829 Thermal 363 | 22 279 62 Explosive . | . . . Electromagnetic 341 | 133 208 . Impact . | . . . Slashing . | . . . Piercing . | . . . Highest Corruption . | . . . Average Corruption . | . . . Corruption Purged . | . . . Corruption Blocked . | . . . Overload Shots . | . . . Overflow Damage 21 | . 21 . Projectiles . | . . . Explosions 21 | . 21 . Melee . | . . . Knockbacks . | . . . Impact . | . . . Kinetic . | . . . Secondary . | . . . Self-Inflicted Damage 59 | . 59 . Shots 2 | . 2 . Rammed . | . . . Targets Rammed . | . . . Kicked . | . . . Crushed . | . . . Highest Temperature 204 | 90 204 . Average Temperature 46 | 32 54 . Received Heat Transfer 141 | . 12 129 Siege Activations . | . . . Robots Corrupted . | . . . Combat Hostiles . | . . . Parts Fried 2 | 1 1 . Impact Corruptions . | . . . Robots Melted . | . . . Combat Hostiles . | . . . Parts Melted 3 | 1 1 1 Heat Transferred 684 | 50 559 75 Parts Sabotaged . | . . . Parts Stolen . | . . . Parts Stripped . | . . . Power Chain Reactions 4 | 1 3 . Alert | -11 -10 -10 ------- Run | Yrd Mat Sub Peak Influence 276 | 20 276 . Initial 13 | . 13 . Average 66 | 8 81 . Maximum Alert Level 1 | . 1 . Low Security (%) 97 | 100 96 . Level 1 2 | . 3 . Level 2 . | . . . Level 3 . | . . . Level 4 . | . . . Level 5 . | . . . High Security . | . . . Max Security . | . . . Squads Dispatched . | . . . Investigation . | . . . Extermination . | . . . Reinforcement . | . . . Assault . | . . . Garrison . | . . . Intercept . | . . . Searches Triggered . | . . . Construction Impeded . | . . . Haulers Reinforced . | . . . Active Scanning Responses . | . . . Cargo Convoy Interrupts . | . . . Stealth | -11 -10 -10 --------- Run | Yrd Mat Sub Distress Signals 1 | . 1 . Communications Jammed . | . . . Distress Signals . | . . . Times Spotted 26 | . 11 15 Peak Tracking Total 3 | . 3 3 Tactical Retreats 2 | . 2 . Traps | -11 -10 -10 ------- Run | Yrd Mat Sub Traps Triggered . | . . . Indirectly . | . . . Trap Hack Attempts . | . . . Triggered . | . . . Disarmed . | . . . Reprogrammed . | . . . Reused . | . . . Traps Extracted . | . . . Installed . | . . . Triggered . | . . . Machines | -11 -10 -10 ---------- Run | Yrd Mat Sub Machines Disabled 1 | . 1 . Max in Single Turn 1 | . 1 . Machines Repaired . | . . . Machines Dismantled . | . . . Machines Sabotaged . | . . . Overloaded Fab Kills . | . . . Hacking | -11 -10 -10 --------- Run | Yrd Mat Sub Machines Accessed 7 | . 5 2 Terminals 5 | . 5 . Fabricators . | . . . Repair Stations . | . . . Recycling Units . | . . . Scanalyzers . | . . . Garrison Access . | . . . Total Hacks 20 | . 18 2 Successful 13 | . 11 2 Failed 7 | . 7 . Catastrophic . | . . . Database Lockouts . | . . . Manual 16 | . 16 . Terminals 18 | . 18 . Fabricators . | . . . Repair Stations . | . . . Recycling Units . | . . . Scanalyzers . | . . . Garrison Access . | . . . Terminal Hacks 5 | . 3 2 Robot Analysis 1 | . 1 . Open Door 1 | . . 1 Machine Index 1 | . 1 . Locate Traps 1 | . 1 . Release Object 1 | . . 1 Fabricator Hacks . | . . . Repair Station Hacks . | . . . Recycling Unit Hacks . | . . . Scanalyzer . | . . . Garrison Access Hacks . | . . . Unauthorized Hacks 8 | . 8 . Terminals 8 | . 8 . Botnet 2 | . 2 . Operators 1 | . 1 . Skim 5 | . 5 . Fabricators . | . . . Repair Stations . | . . . Recycling Units . | . . . Scanalyzers . | . . . Garrison Access . | . . . Data Cores Recovered . | . . . Used . | . . . Hacking Detections 5 | . 5 . Full Trace Events . | . . . Feedback Events . | . . . Feedback Blocked . | . . . Robot Schematics Acquired . | . . . Robots Built . | . . . Authchips . | . . . Time . | . . . Total Robot Build Rating . | . . . Part Schematics Acquired . | . . . Parts Built . | . . . Authchips . | . . . Time . | . . . Total Part Build Rating . | . . . Parts Repaired . | . . . Time . | . . . Parts Recycled . | . . . Recycled Matter . | . . . Retrieved Matter . | . . . Retrieved Components . | . . . Parts Scanalyzed . | . . . Part Schematics Acquired . | . . . Parts Damaged . | . . . Bothacking | -11 -10 -10 ------------ Run | Yrd Mat Sub Used RIF Installer . | . . . Robots Hacked . | . . . Non-combat . | . . . Combat . | . . . Robot Hacks Applied . | . . . Relay Couplers Released . | . . . Fabnet Peak Effective % . | . . . Robots Rewired . | . . . Allies Hacked . | . . . Hacks Repelled . | . . . Allies | -11 -10 -10 -------- Run | Yrd Mat Sub Total Allies . | . . . Largest Group . | . . . Highest-Rated Group . | . . . Highest-Rated Ally . | . . . Total Orders . | . . . Ally Attacks . | . . . Total Damage . | . . . Kills . | . . . Allies Corrupted . | . . . Allies Melted . | . . . Intel | -11 -10 -10 ------- Run | Yrd Mat Sub Robot Analysis Total 1 | . 1 . Derelict Logs Recovered 1 | . . 1 Drone Launches . | . . . Drone Recoveries . | . . . Exploration | -11 -10 -10 ------------- Run | Yrd Mat Sub Turns Passed 2371 | 174 705 1492 Spaces Moved 1328 | 73 373 882 Core 4 | 4 . . Treads 1043 | 69 373 601 Legs . | . . . Wheels 281 | . . 281 Hover . | . . . Flight . | . . . Fastest Speed 50 | 50 160 110 Average Speed 152 | 153 160 149 Slowest Speed 240 | 160 160 240 Overloaded Moves . | . . . Propulsion Burnouts . | . . . Robots Hopped . | . . . Cave-ins Triggered . | . . . Exploration Rate (%) 41 | 5 59 61 Regions Visited 2 Branch Regions 1 Pre-discovered Areas 1 | . 1 . Known Exits Taken . | . . . Unknown Exits Taken 2 | 1 1 . Scrap Searched . | . . . Spaces Dug . | . . . Terrain Destroyed 11 | 7 4 . Melee . | . . . Projectile . | . . . AOE 11 | 7 4 . Terrain Rammed . | . . . Walls Destroyed . | . . . Machines Disabled . | . . . Actions | -11 -10 -10 --------- Run | Yrd Mat Sub Total 1523 | 109 444 970 Wait 52 | 18 34 . Move 1326 | 72 372 882 Hop . | . . . Pick Up 12 | 1 8 3 Fast Attach 19 | 7 5 7 Attach 1 | . . 1 Detach 2 | . . 2 Swap 3 | . 2 1 Drop 23 | . 5 18 Fire 82 | 11 18 53 Melee . | . . . Ram . | . . . Kick . | . . . Crush . | . . . Escape Stasis . | . . . Rewire . | . . . Trap . | . . . Miscellaneous 3 | . . 3 Route ------- -11/Scrapyard -10/Materials (discovered 4 exits: [*Mat] / *Min x2 / *Sub) -10/Subcaves (discovered 2 exits: Mat x2) History --------- Turn | Location | Event 27 | -11/Scrapyard | Discovered new exit (range 16) 175 | -11/Scrapyard | Entered Materials 307 | -10/Materials | Build established: Mutant 314 | -10/Materials | Discovered new exit (range 6) 511 | -10/Materials | Discovered new exit (range 16) 669 | -10/Materials | Learned 4 Subcaves zone layouts 701 | -10/Materials | Learned location of 1 exit from Storage 722 | -10/Materials | Identified exit to Mines 734 | -10/Materials | Learned location of 2 exits from Subcaves 748 | -10/Materials | Learned location of Mines (-9) 874 | -10/Materials | Discovered new exit (range 3) 880 | -10/Materials | Entered Subcaves 881 | -10/Subcaves | Identified exit to Materials 986 | -10/Subcaves | Ambushed by Subdwellers from Twisted Machinery 1315 | -10/Subcaves | Build established: Subdweller-Mutant 1383 | -10/Subcaves | Ambushed by Subdwellers from Twisted Machinery 1693 | -10/Subcaves | Build established: Mutant 1845 | -10/Subcaves | A swath of the cavern ceiling suddenly collapsed 1944 | -10/Subcaves | Learned 2 Materials zone layouts 2212 | -10/Subcaves | Found SUBCON Basin 2303 | -10/Subcaves | Shifting Twisted Machinery released Flamer 2360 | -10/Subcaves | Core integrity fell below 50% 2369 | -10/Subcaves | Core integrity fell below 20% 2372 | -10/Subcaves | Destroyed by K3-LGV(R) with Subdweller Machine Gun Last Messages --------------- >>Open Door Sealed Heavy Doors opened. 02198_ Connecting with SUBCON Basin Controls... >>Release Inventory Accessing inventory controls... Collection purity confirmed 100%... Ejecting SUBCON Basin... Delivery behind schedule, handle with care! 02199_ Dropped Sub. Laser. 02199_ Dropped Flamer. 02202_ Acquired Flamer. 02204_ Dropped Assault Rifle. 02205_ Dropped Grenade Launcher. 02208_ Dropped Flamer. 02208_ Acquired Sub. Laser. 02212_ Acquired SUBCON Basin. Flamer falls loose from the Twisted Machinery. 02348_ A thin wall crumbles away, revealing a door. 02365_ Ion Engine destroyed. Map ----- +----------------------------------------------------+ | ????????????????????????????????"" #????## | | ?????????????????????????????????# #????# | | ?????????????????????????????????# #????### | | ?????????????????????????????????? ####???# | | ?????????????????????????????????? ? ???## | | ?????????????????????????????????? ??# #??## | | ????????????????????????????????## ??# #### | | ???????????????????????????????## ##??# ## | | ??????????????????????????????##|""##?# | | ?????????????????????????????## #?# | | ?????????????????????????????# ### | | ???????????????????????????????# ## | | ???????????????????????????????# ## | | ??????????????????????????????## ## | | ????????????????????????????### ## # | | ??????????????????????####### ### ##### | | ??????????????????????#; ## #???? | | ??????????????????????# & #???? | | ??????????????????????# ? | | ?????????????????????## ###### #### ? | | ?????????????????????# ##?##?# #??# ?? | | ?????????????????????# ### ??## #?# ? | | ?????????????????????# ;????# ### | | ?????????????????????## #????# ##?? ?? | | ??????????????????????# #????#" ???? ##??? | | #####???????????????## @;#????## ?????#???? | | #?????????#####?# #?????## [ ????????? | | ##?????????#"""#?#RRR###??????? [ ???????# | | ##??????????#"" ## #???????? ???????# | | #???????????#"X " "???????" ????????# | | ##??????????#"" ## # "???????" ?????????## | | #??????????#"""## ""#???????????????#### | | ####??????????###### #?????????????## | | ###????????????????## # ?""#???????????## | | # ####??????????????###### ?""???????????# | | ##############???????? ?????????????# | | ## ## ????????| ?????????????# | | # ????????? ????????????#### | | < #????????? #???????????????## | | ## # ## ###??????????#????????????????## | | ##################??????????????????????????????## | | ?????????????????????????????????????????????????? | | ?????????????????????????????????????????????????? | | ?????????????????????????????????????????????????? | | ?????????????????????????????????????????????????? | | ?????????????????????????????????????????????????? | | ?????????????????????????????????????????????????? | | ?????????????????????????????????????????????????? | | ?????????????????????????????????????????????????? | | ?????????????????????????????????????????????????? | +----------------------------------------------------+ Best States ------------- Heat Dissipation 25 Energy Generation 10 Energy Capacity 250 Matter Stores 300 Matter Capacity 300 Sight Range 16 Terrain Scan Density 10 Armor Coverage 800 Evasion (%) 40 Recoil Reduction 2 Item Schematics ----------------- None Robot Schematics ------------------ None Fabricated ------------ Nothing Alien Tech Used ----------------- None Achievements -------------- None Challenges ------------ None Game ------ Seed PortableDamperBoregun Manual? 0 Play Time 00:13:41 Cumulative 334.4 hours Start 2024.09.06 @ 22:52:26 End 2024.09.06 @ 23:03:21 Sessions 1 Manual Loads 0 Difficulty Rogue Special Mode None Game No. 342 Rogue 337 Adventurer 5 Explorer 0 Win Type - Total 5 Types 4/0/0/1/0/0/0/0/0 Lore% 76 Gallery% 82 Achievement% 67 Wizard Run 0 Options --------- Layout 1 ASCII 0 Keyboard 0 Movement Arrows Keybinds 0 Fullscreen 1 Font 24/Terminus Map View 50x35 Zoom Use 0% Tactical HUD 1 Map Filters NONE Filters NONE Steam 1 RUN: 9ffdfda5-23b8-4034-938c-385ebce8e5a6